bitfinex-derivatives/quotes_ETHF0:USTF0_20260128
["timestamp","ask_amount","ask_price","bid_price","bid_amount"]
[1769615226555,2.91997843,3014.0,3012.6,3.53292185]
[1769615227052,2.9163771,3013.8,3012.6,3.53292185]
[1769615229549,6.62471133,3014.0,3011.9,1.50897114]
[1769615229550,3.11519284,3013.6,3011.9,3.53026081]
[1769615229852,2.94905284,3013.4,3011.9,3.53026081]
[1769615230057,6.36705284,3013.4,3011.9,3.53026081]
[1769615230554,6.36705284,3013.4,3011.9,3.53366268]
[1769615231358,40.8,3013.3,3011.9,3.53366268]
[1769615231755,2.94330091,3013.2,3011.9,3.53366268]
[1769615232556,3.10946091,3013.2,3011.9,3.53366268]
[1769615232754,2.94590629,3013.0,3011.6,3.53026081]
[1769615233958,2.94590629,3013.0,3011.6,3.53405965]
[1769615234154,3.11207629,3013.0,3011.6,3.53405965]
[1769615234346,3.11207629,3013.0,3011.6,0.00379884]
[1769615235251,3.11207629,3013.0,3011.6,3.53405965]
[1769615235453,3.09513983,3012.7,3011.6,0.00379884]
[1769615235657,2.92894983,3012.5,3011.1,3.53026081]
[1769615235954,2.92894983,3012.3,3011.1,3.53026081]
[1769615236153,2.92894983,3012.3,3011.0,0.61909172]
[1769615236662,2.92894983,3012.3,3011.0,0.62173926]
[1769615236859,2.85946091,3012.1,3011.0,0.62173926]
[1769615237862,3.20720243,3012.1,3011.0,0.62173926]
[1769615238170,3.20720243,3012.1,3010.8,2.77713868]
[1769615238363,3.20720243,3012.1,3009.8,1.68824095]
[1769615238560,3.37342243,3012.1,3009.8,1.68824095]
[1769615239059,3.44025709,3011.8,3009.8,1.52591823]
[1769615239368,3.61073088,3011.8,3009.8,1.52591823]
[1769615240069,3.44025709,3011.6,3009.9,3.53026081]
[1769615240258,3.44025709,3011.4,3009.9,3.53026081]
[1769615242167,40.8,3011.3,3009.9,3.53026081]
[1769615242368,3.44025709,3011.2,3009.9,3.53026081]
[1769615243164,3.60652709,3011.2,3009.9,3.53026081]
[1769615243369,6.93052709,3011.2,3009.8,0.00401728]
[1769615243566,3.44025709,3010.9,3009.8,0.00401728]
[1769615243863,3.60654709,3010.7,3009.8,0.00401728]
[1769615244066,3.44025709,3010.5,3009.3,3.53026081]
[1769615244459,3.44025709,3010.4,3009.3,3.53026081]
[1769615244655,3.44025709,3010.4,3009.0,3.56182894]
[1769615245069,3.44025709,3010.4,3009.0,3.56484402]
[1769615245361,3.44025709,3010.4,3009.0,0.00301508]
[1769615245563,3.43858895,3010.2,3009.0,0.00301508]
[1769615245767,3.60491895,3010.0,3009.0,0.00301508]
[1769615245977,3.60492895,3009.9,3008.4,3.56182894]
[1769615246158,3.43858895,3009.7,3008.4,3.56182894]
[1769615246463,3.43858895,3009.5,3008.0,3.56182894]
[1769615246669,3.60494895,3009.5,3008.0,3.56182894]
[1769615247064,3.60882909,3009.5,3008.0,3.56566611]
[1769615247466,3.60882909,3009.5,3008.0,0.00383717]
[1769615247666,3.57362818,3009.3,3008.0,0.00383717]
[1769615247858,40.96637,3009.4,3007.3,3.43265316]
[1769615247859,3.57362818,3008.8,3007.3,3.43265316]
[1769615248063,3.57362818,3008.6,3006.5,3.43265316]
[1769615248263,3.74005818,3008.4,3006.5,3.43265316]
[1769615248471,3.57362818,3009.0,3006.5,3.43265316]
[1769615248669,3.57362818,3008.8,3006.5,3.43265316]
[1769615248873,3.57362818,3008.8,3006.5,3.43554046]
[1769615249574,3.57362818,3008.8,3006.5,3.60207046]
[1769615249875,2.301,3008.7,3006.5,3.60207046]
[1769615250173,5.87462818,3008.7,3006.5,3.60207046]
[1769615250870,3.57362818,3008.6,3006.5,3.60207046]
[1769615251574,7.09862818,3008.5,3006.5,3.60207046]
[1769615252062,3.57362818,3008.4,3006.5,3.60207046]
[1769615252460,3.57362818,3008.4,3006.5,3.43554046]
[1769615252868,4.642,3008.3,3006.5,3.43554046]
[1769615253267,40.8,3008.2,3006.5,3.43554046]
[1769615254464,44.37362818,3008.2,3006.5,3.43554046]
[1769615254676,3.57362818,3008.1,3006.5,3.43554046]
[1769615256571,3.57362818,3007.9,3006.5,0.0028873]
[1769615256977,3.57362818,3007.6,3006.5,0.0028873]
[1769615257572,3.74009818,3007.6,3006.5,0.0028873]
[1769615258575,3.57362818,3007.4,3005.0,3.43265316]
[1769615258773,3.57362818,3007.2,3005.0,3.43265316]
[1769615258982,3.57362818,3007.0,3005.0,3.43265316]
[1769615259176,3.57362818,3006.8,3005.0,3.43265316]
[1769615259482,3.57362818,3006.6,3005.0,3.43570325]
[1769615259874,6.498,3006.6,3005.0,3.43570325]
[1769615260179,3.57362818,3006.4,3005.0,3.43570325]
[1769615261471,10.08162818,3006.3,3005.0,3.43570325]
[1769615261974,3.57362818,3006.2,3005.0,0.00305009]
[1769615262179,3.57362818,3005.9,3004.4,3.43265316]
[1769615262870,0.16657,3005.8,3004.4,3.43265316]
[1769615263080,3.085,3005.7,3004.4,3.43265316]
[1769615263379,3.57362818,3005.6,3004.4,3.43586825]
[1769615264176,3.57362818,3005.6,3004.4,0.00321509]
[1769615264375,3.57362818,3005.6,3004.4,3.43586825]
[1769615264777,40.8,3005.5,3004.4,3.43586825]
[1769615265480,10.08862818,3006.0,3004.4,3.43586825]
[1769615265976,40.8,3005.9,3004.4,3.43586825]
[1769615267469,3.57362818,3005.8,3004.4,3.43586825]
[1769615268078,3.57362818,3005.8,3004.4,0.00321509]
[1769615268284,3.57362818,3005.5,3004.0,3.43265316]
[1769615268574,3.57362818,3005.1,3003.0,3.43265316]
[1769615268780,3.57362818,3004.9,3003.0,3.43265316]
[1769615268968,3.74024818,3004.9,3003.0,3.43265316]
[1769615269171,3.74024818,3004.9,3003.0,3.43567228]
[1769615269971,3.331,3005.1,3003.5,3.43265316]
[1769615270174,3.57362818,3005.7,3003.5,3.43265316]
[1769615270369,3.57362818,3005.7,3003.8,3.43265316]
[1769615270370,6.90462818,3005.7,3003.8,3.43265316]
[1769615270779,3.331,3006.1,3003.8,3.43265316]
[1769615270780,3.57362818,3005.6,3003.8,3.43265316]
[1769615271178,6.539,3005.7,3003.8,3.43265316]
[1769615272374,3.57362818,3005.6,3003.8,3.43265316]
[1769615272772,3.74020818,3005.6,3003.8,3.43265316]
[1769615273786,6.561,3005.5,3003.8,3.43265316]
[1769615273979,3.57362818,3005.4,3003.8,3.43265316]
[1769615274387,3.57362818,3005.2,3003.8,3.43265316]
[1769615276687,3.68138759,3005.8,3004.0,3.89872791]
[1769615276987,47.358,3005.9,3004.0,3.89872791]
[1769615277182,7.01338759,3006.3,3004.5,3.89872791]
[1769615277485,3.68138759,3006.2,3004.5,3.89872791]
[1769615277790,40.8,3006.1,3004.5,3.89872791]
[1769615277981,3.68138759,3006.0,3004.5,3.89872791]
[1769615278685,40.8,3006.1,3004.5,4.06536791]
[1769615278983,3.49854,3006.3,3004.5,4.06536791]
[1769615279378,44.29854,3006.3,3004.5,4.06536791]
[1769615280483,3.332,3006.3,3004.6,3.89872791]
[1769615280681,3.332,3006.3,3004.8,3.89872791]
[1769615281083,40.8,3006.6,3004.8,3.89872791]
[1769615281582,0.00360971,3006.8,3005.5,3.89872791]
[1769615281777,0.00360971,3006.8,3005.7,3.89872791]
[1769615282993,3.332,3007.5,3005.7,3.89872791]
[1769615283290,44.132,3007.5,3005.8,0.16656]
[1769615283493,44.132,3007.5,3005.9,3.89872791]
[1769615283679,3.332,3007.5,3005.9,3.89872791]
[1769615284095,3.33495691,3007.5,3005.9,4.06528791]
[1769615284498,3.33495691,3007.5,3006.0,3.89872791]
[1769615285381,3.33495691,3007.5,3006.0,4.06527791]
[1769615285692,0.50474647,3008.4,3006.3,4.06526791]
[1769615285693,4.18613406,3008.4,3006.3,4.06526791]
[1769615285894,4.18613406,3008.4,3005.9,4.47883283]
[1769615285895,0.33832647,3008.4,3006.5,3.89872791]
[1769615286093,3.68138759,3008.7,3006.8,3.89872791]
[1769615286393,4.02616722,3008.7,3006.8,4.06523791]
[1769615286782,4.03045388,3008.7,3006.9,0.1665]
[1769615286982,0.34906629,3008.7,3007.1,3.89872791]
[1769615287183,3.68138759,3008.5,3007.1,3.89872791]
[1769615288292,0.34906629,3008.7,3007.1,3.89872791]
[1769615288493,0.34906629,3008.7,3007.1,4.06521791]
[1769615289789,0.34906629,3008.7,3007.3,3.89872791]
[1769615289992,4.03045388,3008.7,3007.3,3.89872791]
[1769615290397,0.34906629,3008.7,3007.3,3.89872791]
[1769615291201,4.03045388,3008.7,3007.3,3.89872791]
[1769615293210,3.68138759,3008.3,3007.0,3.89872791]
[1769615293805,3.68138759,3008.3,3006.3,3.89872791]
[1769615294304,3.68138759,3008.4,3006.5,4.06525791]
[1769615297912,3.68138759,3008.4,3006.7,3.89872791]
[1769615299303,3.62341,3008.6,3006.9,3.89872791]
[1769615299908,3.457,3008.6,3006.9,3.89872791]
[1769615300213,0.00428666,3008.7,3007.6,3.89872791]
[1769615300417,0.00428666,3008.7,3007.6,4.06519791]
[1769615300913,0.32806965,3008.7,3007.6,4.06519791]
[1769615301514,0.00428666,3008.7,3007.6,4.06519791]
[1769615301808,3.68567425,3008.7,3007.6,3.89872791]
[1769615302006,4.00396443,3008.7,3007.6,3.89872791]
[1769615304010,0.32257684,3008.7,3007.6,3.89872791]
[1769615304918,0.00428666,3008.7,3007.6,3.89872791]
[1769615305916,0.33012372,3008.7,3007.6,3.89872791]
[1769615307020,3.77804741,3008.7,3007.6,3.89872791]
[1769615308018,0.00428666,3008.7,3007.6,3.89872791]
[1769615309616,0.33526959,3008.7,3007.6,3.89872791]
[1769615311207,0.00428666,3008.7,3007.6,3.89872791]
[1769615311613,0.00428666,3008.7,3007.6,4.06518791]
[1769615313315,6.78835,3009.7,3007.8,3.65421878]
[1769615313514,4.50904117,3009.6,3007.8,3.65421878]
[1769615314028,4.83498755,3009.6,3007.8,3.65421878]
[1769615314328,4.83906783,3009.6,3007.8,3.65746615]
[1769615315027,1.39114414,3009.6,3008.2,3.82064878]
[1769615315524,0.33002666,3009.6,3008.2,3.82064878]
[1769615316726,0.00408028,3009.6,3008.7,3.65421878]
[1769615317029,3.61423369,3010.5,3008.7,3.65421878]
[1769615317327,47.64727818,3010.4,3008.7,3.65421878]
[1769615317516,6.84727818,3010.3,3008.7,3.82061878]
[1769615317717,3.44792369,3010.1,3008.7,3.65421878]
[1769615317913,3.4514611,3010.1,3008.7,3.65421878]
[1769615318513,3.44792369,3009.9,3008.7,3.65421878]
[1769615318720,3.44792369,3009.9,3008.4,3.65421878]
[1769615322223,3.61427369,3009.7,3008.1,3.65421878]
[1769615322427,3.39345063,3009.6,3008.1,3.65421878]
[1769615322630,3.61428369,3009.5,3008.1,3.65421878]
[1769615322922,3.44792369,3009.1,3007.8,3.65746615]
[1769615323118,3.61430369,3009.1,3007.8,3.65746615]
[1769615323320,44.41430369,3009.1,3007.8,3.65746615]
[1769615323515,3.44792369,3009.0,3007.8,3.65746615]
[1769615325623,3.44792369,3009.0,3007.8,0.00324737]
[1769615326328,3.44792369,3008.8,3007.2,3.65421878]
[1769615326529,3.44792369,3008.6,3007.2,3.65421878]
[1769615326934,3.44792369,3008.6,3006.8,3.65421878]
[1769615327430,3.44792369,3008.6,3006.8,3.65657975]
[1769615327632,3.44792369,3008.4,3006.8,3.65657975]
[1769615328018,3.39579963,3008.3,3006.8,3.65657975]
[1769615328232,6.84441792,3008.2,3006.8,3.65657975]
[1769615328418,6.84256674,3008.1,3006.8,0.00236097]
[1769615328625,3.44792369,3008.1,3006.8,0.00236097]
[1769615328822,3.39452581,3008.0,3006.8,0.00236097]
[1769615329019,3.44792369,3007.9,3006.8,0.00236097]
[1769615329222,3.44792369,3007.7,3006.5,3.65421878]
[1769615329418,0.0025906,3007.9,3006.5,3.65421878]
[1769615329634,40.8,3007.8,3006.5,3.65421878]
[1769615329928,0.0025906,3007.9,3006.5,3.65421878]
[1769615330130,0.0025906,3007.9,3006.5,3.6584596]
[1769615330528,44.25051429,3007.9,3006.5,3.6584596]
[1769615330835,3.44792369,3007.8,3006.5,3.6584596]
[1769615338238,40.8025906,3007.9,3006.5,3.6584596]
[1769615338541,0.0025906,3007.9,3006.5,3.6584596]
[1769615339636,0.0025906,3007.9,3006.7,3.58041112]
[1769615340236,0.0025906,3007.9,3007.0,3.58041112]
[1769615341044,3.55680165,3008.7,3007.0,3.74691112]
[1769615341732,3.72321165,3008.7,3007.0,3.58041112]
[1769615342243,3.55680165,3008.5,3007.0,3.58041112]
[1769615342536,3.72322165,3008.5,3007.0,3.58041112]
[1769615345239,3.55680165,3008.3,3007.0,3.58041112]
[1769615345435,3.55680165,3008.3,3006.7,3.58041112]
[1769615345846,40.8,3008.2,3006.7,3.58041112]
[1769615346040,3.72324165,3008.1,3006.7,3.58041112]
[1769615347236,3.55680165,3007.7,3006.5,0.00424082]
[1769615347545,3.72326165,3007.7,3006.5,0.00281197]
[1769615348333,3.55680165,3007.5,3006.5,0.00281197]
[1769615348642,3.55680165,3007.3,3005.6,3.58041112]
[1769615349139,3.72328165,3007.3,3005.6,3.58041112]
[1769615349543,3.72328165,3007.3,3005.6,3.58279605]
[1769615350336,3.55680165,3007.3,3005.6,3.58279605]
[1769615351840,3.55680165,3007.8,3005.6,3.74936605]
[1769615352042,3.55680165,3007.6,3005.6,3.74936605]
[1769615352946,3.55680165,3007.6,3005.8,3.58041112]
[1769615353741,3.55680165,3007.6,3006.0,3.58041112]
[1769615354548,3.72325165,3007.9,3006.0,3.58041112]
[1769615355543,3.72325165,3007.9,3006.0,3.74696112]
[1769615355850,3.55680165,3008.5,3006.4,3.58041112]
[1769615356042,3.55680165,3008.3,3006.4,3.58041112]
[1769615356248,3.55680165,3008.3,3006.6,3.58041112]
[1769615358846,3.55680165,3008.3,3006.6,3.74693112]
[1769615359854,3.55680165,3008.1,3006.6,3.58041112]
[1769615360852,3.72324165,3008.1,3006.6,3.58041112]
[1769615361051,3.55680165,3007.9,3006.6,3.58041112]
[1769615362858,3.55680165,3007.8,3006.2,3.58041112]
[1769615363355,3.55680165,3007.7,3006.2,3.58041112]
[1769615365861,3.63892547,3007.1,3005.7,3.67701143]
[1769615366255,3.63892547,3007.0,3005.7,3.67701143]
[1769615368756,40.8,3007.1,3005.7,3.67701143]
[1769615368757,40.8,3007.1,3005.7,3.84358143]
[1769615369069,3.3878381,3007.4,3005.7,3.84358143]
[1769615369457,40.8,3007.3,3005.7,3.84358143]
[1769615369864,3.3878381,3007.4,3005.7,3.84358143]
[1769615370464,3.3878381,3007.2,3005.7,3.84358143]
[1769615372357,3.5543281,3007.2,3005.7,3.67701143]
[1769615372563,3.3878381,3006.8,3005.7,3.67701143]
[1769615373370,3.70333555,3006.8,3005.7,3.67701143]
[1769615375370,0.31549745,3006.8,3005.7,3.67701143]
[1769615375573,3.3878381,3007.1,3005.7,3.67701143]
[1769615375574,10.0228381,3007.1,3005.7,3.67701143]
[1769615375964,3.3878381,3007.0,3005.7,3.67701143]
[1769615376566,3.6981478,3007.0,3005.7,3.67701143]
[1769615379573,3.3878381,3006.5,3005.1,5.95053072]
[1769615379774,3.3878381,3006.2,3004.8,4.12829672]
[1769615380669,3.39129186,3006.2,3004.8,4.13112546]
[1769615380867,3.3878381,3006.1,3004.8,4.13112546]
[1769615381266,3.3878381,3005.9,3004.8,0.62192046]
[1769615382080,3.3878381,3005.9,3004.8,4.13112546]
[1769615383873,40.8,3006.1,3004.8,4.13112546]
[1769615384175,10.03329186,3006.2,3004.8,4.13112546]
[1769615384374,3.3878381,3006.1,3004.8,4.13112546]
[1769615388083,0.00345376,3006.2,3004.8,4.13112546]
[1769615388577,0.00345376,3006.2,3005.0,3.509205]
[1769615388783,0.00345376,3006.2,3005.0,3.675815]
[1769615388975,0.00345376,3006.2,3005.2,3.509205]
[1769615389784,0.00345376,3006.2,3005.2,3.675805]
[1769615390886,0.00345376,3006.2,3005.2,3.509205]
[1769615390887,3.39129186,3006.2,3005.2,3.509205]
[1769615391082,0.00345376,3006.2,3005.2,3.509205]
[1769615398895,0.00345376,3006.2,3005.2,3.675795]
[1769615399091,9.82612191,3006.9,3005.2,3.675795]
[1769615399894,3.34612191,3006.8,3005.2,3.675795]
[1769615400391,3.34612191,3006.8,3005.4,3.47071227]
[1769615400597,6.48279842,3006.9,3005.4,3.63730227]
[1769615401297,6.48279842,3006.9,3005.6,3.47071227]
[1769615401495,0.00279842,3006.9,3006.0,3.47071227]
[1769615401698,0.31739922,3007.4,3006.2,3.47071227]
[1769615401895,3.34612191,3007.6,3006.2,3.47071227]
[1769615402499,44.14612191,3007.9,3006.2,3.47071227]
[1769615402700,44.14943601,3007.9,3006.2,3.47071227]
[1769615403397,44.14943601,3007.9,3006.2,3.63725227]
[1769615403597,0.0033141,3007.9,3006.2,3.63725227]
[1769615403798,0.0033141,3007.9,3006.4,3.47071227]
[1769615404794,3.34943601,3007.9,3006.4,3.47071227]
[1769615406791,3.34943601,3007.9,3005.7,3.47071227]
[1769615406792,3.34612191,3007.4,3005.7,3.47071227]
[1769615406991,3.34612191,3007.2,3005.7,3.47071227]
[1769615407197,3.34612191,3007.1,3005.7,3.47071227]
[1769615408698,3.51261191,3007.1,3004.9,3.47071227]
[1769615409195,4.94170229,3006.7,3004.9,3.47071227]
[1769615409394,3.34612191,3006.6,3004.9,3.47071227]
[1769615409700,44.14612191,3006.6,3004.9,3.47071227]
[1769615409894,3.34612191,3006.6,3004.9,3.63732227]
[1769615410294,3.34612191,3006.9,3005.1,3.63731227]
[1769615410495,3.34612191,3006.9,3005.3,3.47071227]
[1769615410696,1.953,3007.0,3005.3,3.63730227]
[1769615410903,42.753,3007.0,3005.3,3.63730227]
[1769615411500,1.953,3007.0,3005.3,3.63730227]
[1769615411698,3.34612191,3006.9,3005.3,3.63730227]
[1769615412705,1.953,3007.0,3005.3,3.63730227]
[1769615413400,1.953,3007.0,3005.5,3.47071227]
[1769615414204,40.8,3007.1,3005.5,3.47071227]
[1769615414507,3.51261191,3007.2,3005.5,3.47071227]
[1769615415102,44.31261191,3007.2,3005.5,3.47071227]
[1769615415501,3.34612191,3007.2,3005.5,3.47071227]
[1769615415697,3.34612191,3007.2,3005.8,3.47071227]
[1769615416703,3.34612191,3007.1,3005.8,3.47071227]
[1769615418306,3.34612191,3007.4,3005.8,3.47071227]
[1769615420110,3.34612191,3007.3,3005.8,3.47071227]
[1769615423414,44.14612191,3007.3,3005.8,3.47071227]
[1769615423618,3.34612191,3007.3,3005.8,3.47071227]
[1769615424119,3.34612191,3007.2,3005.8,3.47071227]
[1769615428024,0.16648,3007.3,3005.8,3.47071227]
[1769615428820,10.00101405,3007.4,3005.8,3.47071227]
[1769615429230,6.48,3007.4,3006.1,3.41157599]
[1769615429420,6.48,3007.4,3006.1,3.57812599]
[1769615431027,3.52101405,3007.3,3006.1,3.41157599]
[1769615432625,10.00101405,3007.4,3006.1,3.41157599]
[1769615433322,6.48,3007.4,3006.1,3.41157599]
[1769615434123,6.48,3007.4,3006.0,5.97583823]
[1769615434124,6.48,3007.4,3006.3,3.57811599]
[1769615434626,0.0033141,3007.9,3006.5,3.41157599]
[1769615434929,0.0033141,3007.9,3006.5,3.57810599]
[1769615435632,0.0033141,3007.9,3006.7,3.57808599]
[1769615435828,6.48,3008.4,3006.9,3.41157599]
[1769615436034,44.32101405,3008.6,3007.1,3.41157599]
[1769615436232,44.32101405,3008.6,3007.1,3.57806599]
[1769615436431,44.32101405,3008.6,3007.2,0.16649]
[1769615436626,3.52101405,3008.6,3007.3,3.41157599]
[1769615436926,0.00371132,3008.6,3007.3,3.5815124]
[1769615437127,0.00371132,3008.6,3007.5,3.41157599]
[1769615437428,1.05254581,3009.0,3007.9,3.41157599]
[1769615437630,0.30577273,3009.2,3007.9,3.41157599]
[1769615437821,3.52101405,3009.5,3007.9,3.41157599]
[1769615438323,3.83500178,3009.5,3008.0,3.41157599]
[1769615456951,3.52502642,3009.3,3008.0,3.41157599]
[1769615457242,3.69140642,3009.2,3007.5,3.38356828]
[1769615457742,3.69140642,3009.2,3007.5,3.55003828]
[1769615459847,3.83901415,3009.5,3008.0,3.38356828]
[1769615460339,0.31398773,3009.5,3008.2,3.54999828]
[1769615460647,0.31398773,3009.5,3008.5,3.38356828]
[1769615461443,3.83901415,3009.5,3008.5,3.38356828]
[1769615461647,3.83901415,3009.5,3008.2,3.38356828]
[1769615463441,4.00537415,3009.5,3008.2,3.38356828]
[1769615463733,3.69139642,3009.3,3007.8,3.38356828]
[1769615463938,3.52502642,3008.9,3007.5,3.38356828]
[1769615464343,3.39373208,3008.8,3007.5,3.38356828]
[1769615464543,3.52502642,3008.7,3007.5,3.38356828]
[1769615464743,3.52502642,3008.5,3007.5,3.38356828]
[1769615465439,9.87493598,3010.7,3007.5,3.38356828]
[1769615465440,3.52502642,3008.8,3007.5,3.38356828]
[1769615465747,3.52502642,3009.1,3007.5,3.38356828]
[1769615466344,3.52502642,3009.0,3007.5,3.38356828]
[1769615466743,3.52502642,3008.8,3007.5,3.38356828]
[1769615466939,3.52502642,3008.8,3007.3,3.38702469]
[1769615467148,3.52502642,3008.6,3007.3,3.38702469]
[1769615467748,3.69144642,3008.4,3007.3,0.00345641]
[1769615467945,3.52502642,3008.2,3007.3,0.00345641]
[1769615468147,3.52502642,3008.2,3006.9,3.38356828]
[1769615468353,3.52502642,3008.0,3006.5,3.38356828]
[1769615469257,3.52502642,3008.0,3006.5,3.38594459]
[1769615473552,3.69147642,3008.0,3006.5,3.38594459]
[1769615474657,3.52502642,3007.8,3006.5,3.38594459]
[1769615475054,0.16645,3007.9,3006.5,3.38594459]
[1769615475055,3.52502642,3007.6,3006.5,3.38594459]
[1769615477056,3.52502642,3007.6,3006.5,0.00237631]
[1769615477264,3.52502642,3007.6,3006.2,3.38356828]
[1769615478260,3.52502642,3007.6,3006.2,3.38763728]
[1769615479966,3.52502642,3007.9,3006.4,3.55009828]
[1769615480564,3.52502642,3007.9,3006.6,3.38356828]
[1769615480759,3.52502642,3007.9,3006.6,3.55008828]
[1769615482967,3.52502642,3008.2,3006.6,3.55008828]
[1769615484075,3.52502642,3008.2,3006.8,3.38356828]
[1769615485065,6.64643,3008.4,3006.8,3.38356828]
[1769615485259,10.11746794,3008.4,3006.8,3.55007828]
[1769615485962,3.63746794,3008.3,3006.8,3.55007828]
[1769615486366,3.19412282,3008.1,3006.8,3.38356828]
[1769615486760,3.19412282,3008.1,3006.3,3.4624845]
[1769615486959,0.16644,3008.0,3006.3,3.4624845]
[1769615487156,3.19412282,3007.9,3006.3,3.4624845]
[1769615487967,3.19412282,3007.7,3006.3,3.4624845]
[1769615488172,3.19412282,3007.7,3006.2,0.004069]
[1769615488365,3.19412282,3007.7,3006.2,3.4665535]
[1769615489165,3.36060282,3007.3,3006.2,0.004069]
[1769615489364,3.19412282,3007.1,3006.2,7.788e-05]
[1769615490771,3.19412282,3006.9,3005.8,3.4624845]
[1769615491673,3.19412282,3006.9,3005.8,3.46678073]
[1769615492268,40.8,3007.0,3005.8,3.46678073]
[1769615493073,43.99412282,3007.0,3005.8,3.46678073]
[1769615493267,3.19412282,3007.0,3005.8,3.46678073]
[1769615494060,0.00341543,3007.3,3005.8,3.46678073]
[1769615494261,0.00341543,3007.3,3005.8,3.63334073]
[1769615494668,0.00341543,3007.3,3006.0,3.4624845]
[1769615495068,0.00341543,3007.3,3006.2,3.4624845]
[1769615496565,0.00341543,3007.3,3006.2,3.6290245]
[1769615496770,19.44364544,3008.2,3006.6,3.4624845]
[1769615497171,19.44364544,3008.2,3006.6,3.6290045]
[1769615497572,16.24952262,3008.2,3006.8,3.4624845]
[1769615497776,16.25327073,3008.2,3006.8,3.4624845]
[1769615500482,0.00374811,3008.2,3007.2,3.4624845]
[1769615500682,3.19412282,3008.9,3007.4,3.4624845]
[1769615500884,3.19412282,3008.9,3007.5,0.16647]
[1769615501081,3.19412282,3008.9,3007.6,3.4624845]
[1769615501682,3.19832622,3008.9,3007.6,3.4624845]
[1769615505195,0.0042034,3008.9,3007.6,3.4624845]
[1769615505395,0.0042034,3008.9,3007.6,3.6289445]
[1769615506496,3.19832622,3008.9,3007.6,3.4624845]
[1769615507899,3.19832622,3008.9,3007.2,3.4624845]
[1769615509092,3.36472622,3008.9,3007.2,3.4624845]
[1769615509688,3.19412282,3008.5,3006.9,3.4624845]
[1769615510202,3.19412282,3008.4,3006.9,3.4624845]
[1769615510603,3.19412282,3008.2,3006.9,3.4624845]
[1769615512104,3.19412282,3008.1,3006.9,3.4624845]
[1769615512903,3.19412282,3008.1,3006.6,3.4624845]
[1769615516110,3.19412282,3008.1,3006.6,3.6290045]
[1769615517702,40.8,3008.5,3006.6,3.6290045]
[1769615517908,3.37315921,3008.4,3006.6,3.6290045]
[1769615518908,3.37315921,3008.4,3006.8,3.46952355]
[1769615519707,3.37315921,3008.4,3007.0,3.46952355]
[1769615519901,3.37315921,3008.7,3007.0,3.46952355]
[1769615521313,3.37315921,3008.5,3007.0,3.46952355]
[1769615523012,3.53957921,3008.5,3007.0,3.46952355]
[1769615523903,3.37315921,3008.5,3007.0,3.46952355]
[1769615524603,3.37315921,3008.8,3007.2,3.46952355]
[1769615525202,3.37315921,3008.6,3007.2,3.46952355]
[1769615525407,3.37315921,3008.4,3007.2,3.46952355]
[1769615525608,3.37315921,3008.4,3006.7,3.46952355]
[1769615525815,3.53957921,3008.4,3006.7,3.46952355]
[1769615528404,3.53957921,3008.4,3006.7,3.63603355]
[1769615530616,3.37315921,3008.2,3006.7,3.63603355]
[1769615531616,3.37315921,3008.2,3006.9,3.46952355]
[1769615531806,3.37315921,3008.5,3006.9,3.63602355]
[1769615533109,3.37315921,3008.5,3007.1,3.46952355]
[1769615533314,3.37315921,3008.5,3007.1,3.63601355]
[1769615533503,0.0042034,3008.9,3007.5,0.16647]
[1769615533702,0.0042034,3008.9,3007.6,3.63598355]
[1769615536317,0.0042034,3008.9,3007.8,3.46952355]
[1769615536811,0.0042034,3008.9,3007.8,3.63597355]
[1769615537216,0.0042034,3008.9,3008.0,3.46952355]
[1769615537510,16.25470583,3009.3,3008.0,3.46952355]
[1769615537817,16.25470583,3009.3,3008.0,3.63596355]
[1769615538218,3.37315921,3009.7,3008.2,3.46952355]
[1769615538419,3.6782365,3009.7,3008.2,3.473712]
[1769615539617,0.30507729,3009.7,3008.4,3.46952355]
[1769615541818,3.37315921,3010.7,3009.3,3.46952355]
[1769615542217,3.66830025,3010.7,3009.3,3.46952355]
[1769615542714,0.29514104,3010.7,3009.3,3.46952355]
[1769615543024,3.37738393,3010.7,3009.3,3.46952355]
[1769615543321,3.66826379,3010.7,3009.3,3.46952355]
[1769615545126,3.66826379,3010.7,3008.3,3.39801064]
[1769615545425,3.4674866,3010.5,3008.5,3.39801064]
[1769615546828,3.4674866,3010.5,3008.7,3.40317642]
[1769615547025,3.4674866,3010.5,3008.7,3.56957642]
[1769615552328,3.51141242,3010.2,3008.7,3.40317642]
[1769615557730,3.67773242,3010.2,3008.7,3.40317642]
[1769615558839,3.51141242,3009.8,3008.4,3.40317642]
[1769615560130,3.51141242,3010.3,3008.6,3.40317642]
[1769615560331,3.51141242,3010.1,3008.6,3.40317642]
[1769615561927,3.51141242,3009.8,3008.6,3.40317642]
[1769615562133,3.51141242,3009.6,3008.2,0.00418845]
[1769615562338,3.51141242,3009.6,3008.2,3.40736487]
[1769615563042,3.67777242,3009.6,3008.2,3.40736487]
[1769615564441,3.51141242,3009.4,3008.2,0.00418845]
[1769615565135,3.51141242,3009.2,3008.2,0.00418845]
[1769615569344,3.51141242,3009.2,3008.2,3.40736487]
[1769615569545,3.51141242,3009.6,3008.2,3.40736487]
[1769615569843,3.51141242,3009.6,3008.2,3.57379487]
[1769615571043,6.48,3010.0,3008.2,3.40736487]
[1769615571341,3.51141242,3010.1,3008.6,3.40317642]
[1769615572236,47.28,3010.2,3008.6,3.56958642]
[1769615572837,3.51141242,3010.1,3008.6,3.56958642]
[1769615573646,3.51141242,3010.1,3008.6,3.40317642]
[1769615574238,47.28,3010.2,3008.6,3.40317642]
[1769615574441,9.99141242,3010.2,3008.6,3.56958642]
[1769615574948,9.99141242,3010.2,3008.8,3.68057391]
[1769615575346,3.51141242,3010.2,3008.8,3.68057391]
[1769615577345,3.43040317,3010.4,3008.8,3.68057391]
[1769615580653,3.43040317,3010.2,3008.8,3.68057391]
[1769615583054,3.43040317,3010.4,3008.8,3.84696391]
[1769615583657,3.43040317,3010.4,3009.0,3.68057391]
[1769615584358,3.43040317,3010.4,3009.0,3.84696391]
[1769615585056,21.35020526,3010.7,3009.0,3.84696391]
[1769615585256,21.35020526,3010.7,3009.2,3.68057391]
[1769615586154,17.91980209,3010.7,3009.4,3.68057391]
[1769615586550,3.43040317,3010.6,3009.4,3.68057391]
[1769615587350,3.43040317,3010.6,3008.9,3.68057391]
[1769615592153,18.08609209,3010.7,3008.9,3.68057391]
[1769615592154,3.43040317,3010.4,3008.9,3.68057391]
[1769615594560,3.43040317,3010.4,3008.9,3.84696391]
[1769615594855,40.8,3010.6,3008.9,3.84696391]
[1769615595061,21.51649526,3010.7,3009.0,0.16639]
[1769615595257,21.51649526,3010.7,3009.1,3.68057391]
[1769615595458,3.43040317,3010.6,3009.1,3.68057391]
[1769615595959,3.43040317,3010.5,3009.1,3.68057391]
[1769615596864,3.43040317,3010.5,3009.1,3.84695391]
[1769615597162,58.71980209,3010.7,3009.3,3.68057391]
[1769615597359,17.91980209,3010.7,3009.3,3.68057391]
[1769615597859,17.91980209,3010.7,3009.3,3.84694391]
[1769615598064,0.29510458,3010.7,3009.3,3.84694391]